bitfinex/quotes_ETHUSD_20220731
["timestamp","ask_amount","ask_price","bid_price","bid_amount"]
[1659307188184,0.05,1667.1,1666.4,13.701]
[1659307188418,0.05,1667.1,1666.5,1.135]
[1659307188585,0.05,1667.2,1666.6,0.4509]
[1659307188803,0.05,1667.4,1666.5,1.135]
[1659307189003,0.05,1667.4,1666.4,0.451]
[1659307189197,0.05,1667.4,1666.5,3.79977]
[1659307189400,0.05,1667.4,1666.6,3.7509]
[1659307189965,0.05,1667.4,1666.7,2.83212031]
[1659307190269,0.4504,1668.4,1667.0,3.5]
[1659307190472,7.93997635,1668.8,1667.5,3.45]
[1659307190639,6.23967635,1668.8,1667.6,0.29957]
[1659307190825,6.23967635,1668.8,1667.6,3.29957]
[1659307191161,0.2,1668.6,1667.6,3.24957]
[1659307191370,6.23967635,1668.8,1667.6,3.24957]
[1659307191525,6.23967635,1668.8,1667.7,0.05]
[1659307191727,1.3,1668.7,1667.7,0.05]
[1659307191955,6.18967635,1668.8,1667.7,4.0]
[1659307192128,0.4504,1668.7,1667.7,0.3]
[1659307192329,0.4504,1668.7,1667.6,3.70017]
[1659307192330,1.25,1668.6,1667.6,3.70017]
[1659307192528,1.25,1668.6,1667.6,0.24957]
[1659307192758,0.4503,1669.0,1667.6,9.86787881]
[1659307192959,8.2667,1669.2,1668.0,2.84721495]
[1659307192960,0.4502,1669.2,1668.0,2.84721495]
[1659307193169,0.4501,1669.5,1668.2,3.74947]
[1659307193326,1.32488244,1669.9,1668.1,13.7005]
[1659307193327,0.0256,1669.4,1668.4,8.19650516]
[1659307193526,0.0256,1669.4,1668.5,3.7504]
[1659307193729,0.0256,1669.4,1668.7,1.135]
[1659307193944,0.0256,1669.4,1668.7,1.435]
[1659307194345,1.25,1669.2,1668.6,0.29943]
[1659307194547,1.27566,1669.2,1668.2,3.0]
[1659307194747,0.02566,1669.2,1668.2,3.7505]
[1659307194947,0.02566,1669.2,1668.2,3.25]
[1659307195144,0.00066,1669.2,1668.6,3.5]
[1659307195348,0.05,1669.4,1668.9,6.5]
[1659307195560,1.7,1670.1,1669.0,2.24616]
[1659307195870,1.25,1670.4,1669.1,0.05]
[1659307196028,1.25,1670.7,1669.3,0.05]
[1659307196232,1.25,1670.6,1669.5,0.05]
[1659307196469,1.25,1670.8,1669.6,0.05]
[1659307196630,1.25,1670.8,1669.7,0.05]
[1659307196832,1.25,1670.8,1669.8,0.3492]
[1659307197071,0.4498,1670.7,1669.8,0.3492]
[1659307197314,1.25,1670.8,1669.8,0.3492]
[1659307197517,1.25,1670.8,1669.8,0.05]
[1659307197518,1.25,1670.2,1669.8,0.05]
[1659307197720,1.59302167,1670.2,1669.6,0.67831904]
[1659307198031,1.61385167,1670.2,1669.5,0.29927]
[1659307198386,0.36385167,1670.2,1669.5,0.29927]
[1659307198822,0.2,1669.7,1669.4,0.05]
[1659307199005,1.25,1669.8,1669.1,0.34935]
[1659307199191,1.27091,1669.8,1669.1,0.29935]
[1659307199522,1.25,1669.5,1669.0,0.05]
[1659307199721,1.27099,1669.5,1668.8,0.05]
[1659307199927,0.15,1669.2,1668.7,0.05]
[1659307200079,0.022,1669.1,1668.5,0.05]
[1659307200278,0.022,1669.1,1668.2,0.74998]
[1659307200279,0.02097,1668.9,1668.7,0.05]
[1659307200479,0.05,1669.3,1668.8,0.05]
[1659307200722,1.25,1669.5,1668.8,0.05]
[1659307200723,0.05,1669.5,1668.8,0.05]
[1659307201022,6.92899043,1670.2,1668.7,0.22598436]
[1659307201023,1.3,1669.6,1668.7,0.22598436]
[1659307201174,0.05,1669.6,1668.7,0.05]
[1659307201373,1.25,1669.4,1668.7,0.05]
[1659307201606,1.4,1668.9,1668.6,0.05]
[1659307201815,1.4,1668.9,1668.3,0.05]
[1659307202024,1.4,1668.9,1668.1,0.05]
[1659307202183,0.05,1668.9,1668.1,6.79952]
[1659307202377,0.05,1668.9,1668.8,1.212]
[1659307202691,3.1922,1669.6,1669.1,0.05]
[1659307202692,0.05,1669.3,1669.1,0.05]
[1659307202891,0.39302167,1669.6,1668.9,0.05]
[1659307203109,0.34302167,1669.6,1668.8,0.05]
[1659307203275,0.34302167,1669.6,1668.7,0.3494]
[1659307203276,1.25,1669.3,1668.7,0.3494]
[1659307203477,0.05,1669.4,1668.7,0.2994]
[1659307203678,1.25,1669.3,1668.6,0.05]
[1659307203880,0.4501,1669.7,1668.4,1.04987]
[1659307203881,0.05,1669.4,1668.4,1.04987]
[1659307204226,0.05,1669.4,1668.6,0.34943]
[1659307204437,0.05,1669.4,1668.6,3.34943]
[1659307204590,0.05,1669.4,1668.6,3.64943]
[1659307204819,0.05,1669.4,1669.0,0.05]
[1659307205053,1.25,1669.6,1669.2,0.05]
[1659307205212,0.05,1669.9,1669.2,0.05]
[1659307205556,12.4667,1670.3,1669.0,0.17598436]
[1659307205557,0.05,1670.0,1669.3,0.17598436]
[1659307205728,0.05,1670.1,1669.4,0.05]
[1659307205926,0.05,1670.2,1669.7,0.05]
[1659307206124,7.0,1670.8,1669.6,0.05]
[1659307206125,0.05,1670.4,1669.6,0.05]
[1659307206332,0.05,1670.4,1669.5,0.22598436]
[1659307206333,0.05,1670.4,1669.7,0.05]
[1659307206641,25.4607,1670.9,1669.6,0.4501]
[1659307206642,0.05,1670.5,1669.6,0.4501]
[1659307206824,0.05,1670.5,1669.6,1.97126436]
[1659307207012,0.05,1670.5,1669.7,14.7911]
[1659307207215,0.05,1670.5,1669.8,3.0]
[1659307207413,0.05,1670.6,1669.9,3.19804672]
[1659307207614,1.25,1670.6,1670.0,6.19804672]
[1659307207840,1.25,1670.6,1670.1,5.89804672]
[1659307208054,0.05,1670.8,1670.5,2.89804672]
[1659307208260,0.05,1670.8,1670.2,0.3]
[1659307208261,0.3,1671.0,1670.6,5.89804672]
[1659307208519,0.3,1671.0,1670.7,2.89804672]
[1659307208681,0.3,1671.0,1670.8,3.0]
[1659307208826,0.3,1671.0,1670.9,2.89804672]
[1659307209026,0.3,1671.0,1670.9,5.89804672]
[1659307209647,0.3,1671.0,1670.9,3.0]
[1659307209853,0.3,1671.0,1670.9,2.89804672]
[1659307210051,0.3,1671.0,1670.9,5.89804672]
[1659307210649,0.3,1671.0,1670.9,5.90033668]
[1659307211366,0.3,1671.0,1670.9,3.0]
[1659307211569,0.3,1671.0,1670.5,0.05]
[1659307211570,1.55,1671.0,1670.5,0.05]
[1659307211769,0.2,1670.9,1670.3,0.05]
[1659307211973,1.25,1670.6,1670.1,0.05]
[1659307212297,0.34302167,1670.8,1670.1,0.05]
[1659307212298,0.05,1670.8,1670.5,2.89804672]
[1659307212477,0.3,1671.0,1670.6,2.89804672]
[1659307212674,0.3,1671.0,1670.6,3.07403108]
[1659307212675,1.55,1671.0,1670.6,3.07403108]
[1659307212875,0.3,1671.0,1670.7,2.90033694]
[1659307213094,0.3,1671.0,1670.8,2.89804672]
[1659307213871,0.3,1671.0,1670.9,3.0]
[1659307214092,0.64302167,1671.0,1670.5,0.05]
[1659307214297,1.25,1670.8,1670.3,0.05]
[1659307214500,1.25,1670.8,1670.4,2.89804672]
[1659307215813,1.25,1670.8,1670.5,2.95]
[1659307216036,0.3,1671.0,1670.6,2.89804672]
[1659307216317,0.3,1671.0,1670.3,0.05]
[1659307216318,0.2,1670.8,1670.3,0.05]
[1659307216522,1.25,1670.4,1670.1,0.05]
[1659307216665,1.25,1670.4,1670.2,2.89804672]
[1659307217024,0.34302167,1670.6,1670.2,2.89804672]
[1659307217305,1.25,1670.4,1670.2,2.89804672]
[1659307217514,1.25,1670.5,1670.2,2.89804672]
[1659307217711,0.34302167,1670.6,1670.2,2.89804672]
[1659307217712,1.25,1670.4,1670.2,2.89804672]
[1659307218066,0.34302167,1670.6,1670.2,2.89804672]
[1659307218285,1.25,1670.4,1670.2,2.89804672]
[1659307218474,0.34302167,1670.6,1670.2,2.89804672]
[1659307218665,1.25,1670.4,1670.2,2.89804672]
[1659307219104,1.59302167,1670.6,1670.2,2.89804672]
[1659307219417,1.25,1670.4,1670.2,2.89804672]
[1659307219584,0.34302167,1670.6,1670.2,2.89804672]
[1659307219969,0.34302167,1670.6,1670.4,1.8]
[1659307220224,1.25,1670.5,1670.4,1.8]
[1659307220518,0.54302167,1670.6,1670.4,1.8]
[1659307220812,1.25,1670.5,1670.4,1.8]
[1659307220988,1.65,1670.5,1670.4,1.8]
[1659307221303,8.49794672,1670.5,1670.4,1.8]
[1659307221506,8.79794672,1670.5,1670.4,1.8]
[1659307221714,5.29794672,1670.5,1670.4,1.8]
[1659307222004,1.6999,1670.5,1670.4,1.8]
[1659307222203,1.25,1670.5,1670.4,1.8]
[1659307223169,0.4498,1670.8,1670.4,1.8]
[1659307223408,1.25,1670.7,1670.4,1.8]
[1659307223610,1.25,1670.7,1670.5,2.89804672]
[1659307223822,0.35,1671.0,1670.5,2.89804672]
[1659307223987,0.3,1671.0,1670.5,2.89804672]
[1659307224815,1.25,1670.8,1670.5,2.89804672]
[1659307225171,1.25,1670.8,1670.5,2.79804672]
[1659307226209,1.25,1670.9,1670.6,0.01550764]
[1659307226413,0.3,1671.0,1670.6,0.01550764]
[1659307226711,1.25,1670.7,1670.6,0.01550764]
[1659307226926,1.25,1670.7,1670.4,1.8]
[1659307227217,5.15,1670.5,1670.4,1.8]
[1659307227435,0.4,1670.1,1670.0,0.05]
[1659307227632,0.4,1670.1,1669.1,0.4502]
[1659307227633,0.2,1669.7,1669.1,0.4502]
[1659307227831,0.2,1670.0,1668.7,10.9696]
[1659307227832,1.25,1669.2,1668.7,10.9696]
[1659307227985,0.2,1669.1,1668.6,0.032]
[1659307228185,1.25,1668.9,1668.6,0.032]
[1659307228691,1.25,1669.0,1668.6,0.032]
[1659307228924,0.05,1669.2,1668.6,0.032]
[1659307229133,0.05,1669.4,1668.6,0.032]
[1659307229427,1.25,1668.8,1668.6,0.032]
[1659307229625,1.3,1669.1,1668.6,0.032]
[1659307229802,1.25,1669.1,1668.6,0.032]
[1659307230250,0.05,1669.3,1668.6,0.032]
[1659307230386,1.25,1669.1,1668.6,0.032]
[1659307230586,1.25,1669.2,1668.6,0.032]
[1659307230808,1.25,1669.0,1668.6,0.032]
[1659307231597,0.39302167,1669.2,1668.6,0.032]
[1659307231598,0.05,1669.2,1668.6,0.032]
[1659307231826,16.686045,1669.8,1668.6,0.20798436]
[1659307231827,1.3,1669.4,1668.6,0.20798436]
[1659307232030,0.05,1669.4,1668.6,3.65838436]
[1659307232600,0.05,1669.4,1668.7,2.89804672]
[1659307232793,0.05,1669.5,1668.9,2.74067859]
[1659307233132,7.6711,1670.1,1669.1,6.39804672]
[1659307233133,0.05,1669.7,1669.1,6.39804672]
[1659307233316,1.25,1670.1,1669.3,0.29925]
[1659307233317,0.05,1669.9,1669.3,0.29925]
[1659307233533,0.05,1670.0,1669.4,2.89804672]
[1659307233694,11.2489,1670.6,1669.5,3.0]
[1659307233695,1.25,1669.9,1669.5,3.0]
[1659307233897,1.25,1669.9,1669.6,2.89804672]
[1659307234289,1.25,1669.9,1669.7,3.0]
[1659307234530,1.25,1670.1,1669.8,2.89804672]
[1659307234689,0.05,1670.4,1669.9,3.0]
[1659307234937,1.3,1670.6,1670.0,2.89804672]
[1659307235277,1.25,1670.6,1670.1,3.02813143]
[1659307235441,1.25,1670.6,1670.2,2.89804672]
[1659307235969,1.25,1670.6,1670.3,0.02812808]
[1659307236173,0.4998,1670.9,1670.4,2.89804672]
[1659307236386,0.3,1671.0,1670.4,2.89804672]
[1659307236557,1.25,1670.9,1670.5,3.0]
[1659307236761,1.25,1670.9,1670.6,2.89804672]
[1659307236942,0.3,1671.0,1670.7,3.0]
[1659307237143,0.3,1671.0,1670.8,2.89804672]
[1659307237445,0.05,1671.4,1670.8,2.89804672]
[1659307237647,0.05,1671.5,1671.0,2.89804672]
[1659307237885,0.05,1671.7,1671.1,2.95]
[1659307238047,1.3,1671.7,1671.2,2.89804672]
[1659307238245,1.25,1671.7,1671.2,2.89804672]
[1659307238446,1.59302167,1671.7,1671.2,2.89804672]
[1659307238704,1.59302167,1671.7,1671.2,2.85092789]
[1659307238930,1.59302167,1671.7,1671.3,2.89804672]
[1659307239343,1.59302167,1671.7,1671.4,3.0]
[1659307239497,1.59302167,1671.7,1671.4,5.89804672]
[1659307240149,1.25,1671.7,1671.4,5.89804672]
[1659307240360,1.25,1671.7,1671.4,5.90092755]
[1659307241073,1.25,1671.5,1671.1,0.05]
[1659307241209,2.89804672,1671.7,1670.8,0.05]
[1659307241210,1.25,1671.3,1670.8,0.05]
[1659307241415,0.05,1671.5,1670.8,0.00288186]
[1659307241648,0.4496,1671.6,1670.8,0.00288186]
[1659307241649,0.35,1671.6,1670.8,0.00288186]
[1659307241854,1.25,1671.4,1670.9,2.89804672]
[1659307242006,1.25,1671.4,1670.9,2.90092841]
[1659307242207,1.25,1671.4,1670.9,2.85092841]
[1659307242440,0.79262167,1671.5,1671.0,2.89804672]
[1659307242441,0.34302167,1671.5,1671.0,2.89804672]
[1659307243159,1.59302167,1671.5,1671.0,2.89804672]
[1659307243521,1.59302167,1671.5,1671.1,3.0]
[1659307243847,0.34302167,1671.5,1671.1,5.89804672]
[1659307244209,0.34302167,1671.5,1671.1,3.0]
[1659307244210,1.59302167,1671.5,1671.1,3.0]
[1659307244457,0.34302167,1671.5,1671.1,2.89804672]
[1659307244615,1.6996,1671.6,1671.1,2.90346541]
[1659307245051,1.25,1671.6,1671.1,2.90346541]
[1659307245354,1.25,1671.3,1671.1,2.90346541]
[1659307245510,1.3,1671.6,1671.1,2.90346541]
[1659307245713,1.25,1671.6,1671.1,2.90346541]
[1659307245910,0.4495,1671.7,1671.0,3.0]
[1659307246136,1.25,1671.3,1671.0,2.89804672]
[1659307246339,1.25,1671.3,1671.1,3.0]
[1659307247450,0.25,1671.6,1671.1,5.89804672]
[1659307247662,0.2,1671.6,1671.1,2.89804672]
[1659307247868,1.15,1671.3,1671.0,2.91881829]
[1659307248069,0.2,1671.4,1671.0,2.91881829]
[1659307248272,1.15,1671.3,1671.0,2.91881829]
[1659307248674,1.1,1671.3,1671.0,2.91881829]
[1659307248841,1.1,1671.1,1671.0,2.91881829]
[1659307249060,1.1,1671.1,1670.7,0.05]
[1659307249061,0.34302167,1671.3,1670.8,3.0]
[1659307249383,1.1,1671.1,1670.6,3.05]
[1659307249538,1.1,1671.1,1670.7,2.89804672]
[1659307249738,1.1,1671.1,1670.8,3.0]
[1659307249952,0.4996,1671.4,1670.9,2.89804672]
[1659307250155,0.05,1671.6,1671.2,2.89804672]
[1659307250384,1.15,1671.9,1671.2,2.89804672]
[1659307250568,1.1,1671.3,1671.1,2.94804672]
[1659307250772,0.34302167,1671.8,1670.3,13.84917569]
[1659307250773,0.2,1671.5,1670.7,0.05]
[1659307250952,0.2,1671.5,1670.7,2.89804672]
[1659307250953,0.2,1671.0,1670.7,2.89804672]
[1659307251153,0.2,1671.0,1670.6,2.89804672]
[1659307251154,1.1,1670.8,1670.6,2.89804672]
[1659307253772,1.1,1670.8,1670.6,2.90758075]
[1659307254009,1.1,1670.8,1670.7,2.89804672]
[1659307254808,1.15,1671.2,1670.8,1.1]
[1659307254989,0.05,1671.4,1670.9,2.90757904]
[1659307255322,1.1,1671.4,1671.0,5.89804672]
[1659307255529,1.1,1671.4,1671.1,2.89804672]
[1659307256117,0.05,1671.7,1671.1,2.89804672]
[1659307256319,1.1,1671.3,1671.2,0.00953061]
[1659307256472,1.1,1671.3,1671.2,2.90757733]
[1659307256672,1.1,1671.3,1671.2,5.90757733]
[1659307257457,1.1,1671.3,1671.2,2.90757733]
[1659307258014,1.1,1671.4,1671.2,2.90757733]
[1659307259059,1.1,1671.5,1671.3,2.89804672]
[1659307259265,0.4995,1671.9,1671.3,2.89804672]
[1659307259418,9.1829,1672.0,1671.4,3.00218886]
[1659307259419,1.5518,1672.0,1671.4,3.00218886]
[1659307259620,1.1,1671.8,1671.5,2.89804672]
[1659307259917,1.0523,1672.0,1671.5,2.89804672]
[1659307259918,2.1523,1672.0,1671.5,2.89804672]
[1659307260117,1.1,1671.9,1671.5,2.89804672]
[1659307260766,0.4494,1672.1,1671.6,2.89804672]
[1659307260923,7.6382,1672.5,1671.9,2.89804672]
[1659307260924,0.05,1672.3,1671.9,2.89804672]
[1659307261124,1.1,1672.4,1672.0,2.89804672]
[1659307261327,0.05,1672.5,1672.0,2.89804672]
[1659307261328,1.1,1672.3,1672.0,2.89804672]
[1659307261556,0.34302167,1672.5,1671.8,2.89804672]
[1659307261557,1.1,1672.1,1671.8,2.89804672]
[1659307261760,0.4994,1672.4,1671.9,3.0]
[1659307261929,0.4494,1672.4,1671.8,3.0]
[1659307262134,1.1,1672.0,1671.8,3.0]
[1659307262779,1.1,1671.9,1671.7,2.89804672]
[1659307263065,1.3,1671.8,1671.3,0.05]
[1659307263221,1.3,1671.8,1671.1,8.1179]
[1659307263222,1.1,1671.4,1671.1,8.1179]
[1659307263421,1.1,1671.3,1671.2,2.89804672]
[1659307263873,1.3,1671.3,1671.2,2.89804672]
[1659307265050,1.3,1671.3,1670.8,3.24764126]
[1659307265250,0.2,1671.3,1670.9,2.89804672]
[1659307265844,0.25,1671.5,1670.9,2.89804672]
[1659307265845,1.1,1671.1,1670.9,2.89804672]
[1659307266045,1.1,1671.3,1670.9,2.89804672]
[1659307266246,1.1,1671.3,1671.0,3.0]
[1659307266423,0.05,1671.6,1671.1,2.89804672]
[1659307266626,0.25,1671.8,1671.1,2.89804672]
[1659307266872,0.2,1671.8,1671.1,2.89804672]
[1659307267066,1.1,1671.2,1671.1,2.89804672]
[1659307267522,1.09459,1671.2,1671.1,2.89804672]
[1659307268159,1.09459,1671.2,1671.0,3.0]
[1659307268160,1.09459,1671.2,1671.0,5.89804672]
[1659307268346,0.05,1671.5,1671.0,2.89804672]
[1659307268549,0.34302167,1671.6,1671.0,2.89804672]
[1659307268784,1.09459,1671.2,1671.0,2.89804672]
[1659307268987,0.05,1671.5,1671.0,2.89804672]
[1659307269143,1.09459,1671.3,1671.0,2.89804672]
[1659307269342,1.09459,1671.1,1670.9,2.90742517]
[1659307269737,1.09459,1671.2,1670.8,3.032]
[1659307269938,1.09459,1671.1,1670.8,0.032]
[1659307270181,0.05,1671.4,1670.9,2.89804672]
[1659307270376,1.09459,1671.0,1670.9,2.89804672]
[1659307271746,1.04459,1671.0,1670.9,2.89804672]
[1659307273181,0.34302167,1671.3,1670.9,2.89804672]
[1659307273382,1.04459,1671.2,1671.0,0.00367101]
[1659307273691,1.04459,1671.2,1671.1,2.89804672]
[1659307273896,0.3,1671.6,1671.1,2.89804672]
[1659307273897,1.04459,1671.3,1671.1,2.89804672]
[1659307274096,1.04459,1671.2,1671.1,2.89804672]
[1659307276535,0.05,1671.6,1671.1,2.89804672]
[1659307276704,8.2206,1671.8,1671.1,2.89804672]
[1659307276705,0.35,1671.8,1671.1,2.89804672]
[1659307276886,1.04459,1671.4,1671.1,2.89804672]
[1659307277089,0.05,1671.7,1671.2,0.17598436]
[1659307277289,15.22,1672.6,1671.6,7.89804672]
[1659307277606,8.3333,1672.7,1671.7,2.89804672]
[1659307277938,8.3333,1672.7,1671.7,2.94804672]
[1659307277939,3.5,1672.4,1671.7,2.94804672]
[1659307278094,0.2,1671.8,1671.6,0.05]
[1659307278294,0.2,1671.3,1671.2,0.05]
[1659307278509,3.5,1671.8,1671.2,2.89804672]
[1659307278510,7.8426,1671.8,1671.2,2.89804672]
[1659307278720,4.52871926,1672.1,1671.2,2.89804672]
[1659307278898,3.302,1672.1,1671.2,2.94804672]
[1659307279096,7.8426,1672.3,1671.3,2.89804672]
[1659307279295,7.8426,1672.3,1671.3,3.44698672]
[1659307279528,14.4362,1672.6,1671.3,3.44698672]
[1659307279529,7.6707,1672.6,1671.7,0.2]
[1659307279801,7.6707,1672.6,1671.8,2.89804672]
[1659307280033,7.8426,1672.7,1671.9,3.0]
[1659307280200,7.8426,1672.7,1672.0,3.09804672]
[1659307280402,7.8426,1672.7,1672.1,2.89804672]
[1659307280738,0.05,1672.9,1672.2,0.00421036]
[1659307280923,0.05,1672.9,1672.2,2.90225708]
[1659307281097,0.05,1673.0,1672.2,2.90225708]
[1659307281303,0.05,1673.0,1672.3,6.09804672]
[1659307281524,0.49961,1673.1,1672.4,2.90225658]
[1659307281738,0.49961,1673.1,1672.5,2.89804672]
[1659307281739,0.44961,1673.1,1672.5,2.89804672]
[1659307281897,0.44961,1673.1,1672.4,0.00420986]
[1659307281898,3.69067839,1673.1,1672.4,0.00420986]
[1659307282095,7.19067839,1673.1,1672.4,0.00420986]
[1659307282293,7.19067839,1673.1,1672.4,2.90225658]
[1659307282294,0.69263167,1673.1,1672.4,2.90225658]
[1659307282535,0.69263167,1673.1,1672.5,2.89804672]
[1659307282693,0.69263167,1673.1,1672.6,0.00420934]
[1659307282893,0.69263167,1673.1,1672.6,2.90225606]
[1659307284350,0.34961,1673.1,1672.6,2.90225606]
[1659307284509,0.34961,1673.1,1672.6,0.00420934]
[1659307284703,0.34961,1673.1,1672.6,2.90225606]
[1659307285913,0.69263167,1673.1,1672.6,2.90225606]
[1659307287017,0.69263167,1673.1,1672.6,0.00420934]
[1659307287217,0.69263167,1673.1,1672.4,0.05]
[1659307287218,0.2,1672.8,1672.4,0.05]
[1659307287457,0.54302167,1672.8,1672.1,0.05]
[1659307287690,0.84302167,1672.8,1672.2,0.00947423]
[1659307287887,0.34302167,1672.8,1672.2,0.00947423]
[1659307288233,0.05,1672.9,1672.3,0.2]
[1659307288463,0.05,1673.0,1672.4,0.0094731]
[1659307288791,0.64961,1673.1,1672.5,2.89804672]
[1659307289148,0.34961,1673.1,1672.6,0.00947196]
[1659307289344,0.34961,1673.1,1672.9,0.2]
[1659307289544,0.34961,1673.1,1673.0,6.39804672]
[1659307289773,0.00061,1673.1,1673.0,9.39804672]
[1659307289940,0.00061,1673.1,1673.0,12.40873052]
[1659307290138,0.00061,1673.1,1673.0,12.70873052]
[1659307290529,0.00061,1673.1,1673.0,6.40751641]
[1659307290730,0.00061,1673.1,1673.0,0.72443575]
[1659307290930,0.00061,1673.1,1673.0,3.62248247]
[1659307291165,0.00061,1673.1,1673.0,3.09804672]
[1659307291425,0.05,1673.5,1673.1,6.5]
[1659307291607,0.05,1673.7,1673.3,2.89804672]
[1659307291806,0.05,1673.9,1673.4,0.2]
[1659307292097,0.3,1674.0,1673.5,5.72622768]
[1659307292295,0.3,1674.0,1673.6,2.89804672]
[1659307292526,0.3,1674.0,1673.7,0.2]
[1659307292841,0.3,1674.0,1673.8,2.89804672]
[1659307293196,0.3,1674.0,1673.9,9.7]
[1659307293397,0.3,1674.0,1673.9,12.59804672]
[1659307293596,0.3,1674.0,1673.9,9.59804672]
[1659307293799,0.05,1674.4,1673.9,15.50149574]
[1659307294101,0.05,1674.6,1674.0,5.89804672]
[1659307294436,0.05,1674.7,1674.3,0.2]
[1659307294745,0.05,1674.9,1674.0,11.3068]
[1659307294941,2.89804672,1674.8,1674.0,3.05]
[1659307295168,6.44804672,1674.9,1674.0,2.89804672]
[1659307295372,0.05,1674.9,1674.1,2.89804672]
[1659307295526,0.34302167,1674.8,1674.1,2.89804672]
[1659307296061,0.34302167,1674.8,1674.2,0.2]
[1659307296265,0.64302167,1674.8,1674.3,2.89804672]
[1659307296468,0.34302167,1674.8,1674.2,2.89804672]
[1659307297548,0.2,1674.7,1674.1,2.89804672]
[1659307297754,0.2,1674.4,1673.9,0.05]
[1659307297949,0.2,1674.4,1673.9,2.89804672]
[1659307298341,0.55,1674.6,1673.9,2.89804672]
[1659307298543,0.34302167,1674.5,1673.9,2.89804672]
[1659307299583,0.34302167,1674.5,1673.8,2.89804672]
[1659307300527,0.05,1674.6,1673.9,0.2]
[1659307300743,0.05,1674.7,1673.9,6.09804672]
[1659307301033,0.05,1674.8,1674.0,2.89804672]
[1659307301232,0.05,1674.9,1674.2,0.2]
[1659307301435,15.5131474,1675.2,1674.2,0.2]
[1659307301436,0.05,1675.0,1674.3,2.89804672]
[1659307301581,11.77,1675.1,1674.3,2.89804672]
[1659307301783,0.34302167,1675.0,1674.3,2.89804672]
[1659307302653,0.731,1674.3,1674.2,0.05]
[1659307302859,3.7,1674.7,1673.8,3.05]
[1659307303015,0.15,1674.6,1673.9,2.89804672]
[1659307303217,0.35,1674.7,1674.0,0.0213544]
[1659307303410,0.3,1674.7,1674.0,0.0213544]
[1659307303610,0.05,1674.8,1674.0,0.0213544]
[1659307303810,2.89804672,1674.8,1674.0,2.91940112]
[1659307304049,0.34302167,1674.7,1674.1,2.89804672]
[1659307304256,0.64302167,1674.7,1674.1,2.89804672]
[1659307304425,0.34302167,1674.7,1674.1,2.89804672]
[1659307304815,0.05,1674.9,1674.1,2.89804672]
[1659307305135,0.05,1674.9,1674.3,0.05]
[1659307305446,8.26183866,1675.2,1674.4,3.5]
[1659307305656,2.89804672,1675.1,1674.4,3.5]
[1659307305814,3.24106839,1675.1,1674.3,2.94804672]
[1659307306015,3.24106839,1675.1,1674.3,2.89804672]
[1659307306238,3.54106839,1675.1,1674.3,2.89804672]
[1659307306446,0.64302167,1675.1,1674.3,2.89804672]
[1659307306631,0.39302167,1675.1,1674.4,3.0]
[1659307306836,0.34302167,1675.1,1674.4,5.89804672]
[1659307307459,0.34302167,1675.1,1674.5,2.89804672]
[1659307307670,0.34302167,1675.1,1674.4,5.91939602]
[1659307307863,0.34302167,1675.1,1674.5,2.89804672]
[1659307308024,0.34302167,1675.1,1674.4,5.91939602]
[1659307308351,2.89804672,1675.0,1674.4,3.0213493]
[1659307308557,2.89804672,1675.0,1674.4,0.0213493]
[1659307308713,8.61107841,1675.2,1674.4,2.91939602]
[1659307309054,11.45664672,1675.2,1674.4,2.91939602]
[1659307309561,8.1086,1675.2,1674.7,0.05]
[1659307309763,8.06107841,1675.2,1674.8,0.02134421]
[1659307310178,0.15,1674.9,1674.5,0.05]
[1659307310374,2.89804672,1675.1,1674.4,0.05]
[1659307310591,8.11107841,1675.2,1674.6,0.05]
[1659307310796,8.0586,1675.2,1674.7,2.89804672]
[1659307311003,0.05,1675.4,1674.6,5.89804672]
[1659307311295,0.05,1675.4,1674.7,2.89804672]
[1659307311495,0.00247849,1675.2,1674.8,3.0]
[1659307311701,0.00247849,1675.2,1675.0,0.05]
[1659307311898,0.00247849,1675.2,1675.0,5.94804672]
[1659307312114,0.00247849,1675.2,1675.0,2.94804672]
[1659307312272,0.05,1675.5,1675.1,7.0]
[1659307312477,0.05,1675.7,1675.1,7.0]
[1659307312808,0.05,1675.7,1674.9,0.05]
[1659307312809,2.89804672,1675.6,1674.9,0.05]
[1659307313019,0.0032394,1675.6,1675.0,2.89804672]
[1659307313185,0.0032394,1675.6,1675.1,3.02134038]
[1659307313366,0.0032394,1675.6,1675.3,0.05]
[1659307313568,0.0032394,1675.6,1675.2,2.89804672]
[1659307313819,0.0032394,1675.6,1675.3,3.0]
[1659307314061,0.05,1675.9,1675.3,3.0]
[1659307314252,9.99533,1676.2,1675.5,0.05]
[1659307314253,0.29833,1676.2,1675.5,0.05]
[1659307314456,0.61756226,1677.1,1675.5,0.05]
[1659307314457,0.3,1677.0,1676.1,9.39804672]
[1659307314667,0.3,1677.0,1676.4,2.89804672]
[1659307314829,0.3,1677.0,1676.7,0.05]
[1659307315031,0.3,1677.0,1676.8,2.89804672]
[1659307315230,11.132,1677.8,1676.8,2.89804672]
[1659307315539,11.132,1677.8,1676.8,2.94804672]
[1659307315870,11.082,1677.8,1676.9,2.89804672]
[1659307316177,11.08,1677.8,1676.9,0.05]
[1659307316475,0.00249758,1677.6,1676.9,3.67965883]
[1659307316630,0.34551925,1677.6,1676.8,0.05]